[Event "*** SCC Grand Prix: Titled Tuesday Blitz"]
[Site "Chess.com"]
[Date "2020.10.13"]
[Round "10"]
[White "SophieNikoladze"]
[Black "PlotnikovPavel"]
[Result "1-0"]
[WhiteElo "2270"]
[BlackElo "2363"]
[TimeControl "180+1"]
[EndTime "11:56:25 PDT"]
[Termination "SophieNikoladze won by checkmate"]

1. d4 {[%clk 0:03:00.9]} 1... Nf6 {[%clk 0:02:57.5]} 2. Nf3 {[%clk 0:03:00.8]}
2... g6 {[%clk 0:02:57.7]} 3. g3 {[%clk 0:03:00.2]} 3... Bg7 {[%clk 0:02:58.6]}
4. Bg2 {[%clk 0:03:00.4]} 4... O-O {[%clk 0:02:59.5]} 5. O-O {[%clk 0:03:00.2]}
5... d6 {[%clk 0:02:59.7]} 6. c4 {[%clk 0:02:59.1]} 6... Nbd7 {[%clk 0:02:59.8]}
7. Nc3 {[%clk 0:02:59.2]} 7... Re8 {[%clk 0:03:00.2]} 8. h3 {[%clk 0:02:57]}
8... e5 {[%clk 0:02:59.6]} 9. e4 {[%clk 0:02:57.1]} 9... c6 {[%clk 0:02:59.2]}
10. Re1 {[%clk 0:02:56.5]} 10... Qc7 {[%clk 0:02:56.7]} 11. Be3 {[%clk 0:02:56]}
11... b6 {[%clk 0:02:55.9]} 12. Qc2 {[%clk 0:02:54.7]} 12... Bb7 {[%clk
0:02:55.7]} 13. Rad1 {[%clk 0:02:54.5]} 13... Rad8 {[%clk 0:02:55.4]} 14. b3
{[%clk 0:02:54.3]} 14... Qb8 {[%clk 0:02:54.5]} 15. d5 {[%clk 0:02:52.2]} 15...
Qa8 {[%clk 0:02:55.4]} 16. Rc1 {[%clk 0:02:49.1]} 16... Nc5 {[%clk 0:02:54.5]}
17. b4 {[%clk 0:02:47]} 17... Na6 {[%clk 0:02:53.6]} 18. a3 {[%clk 0:02:46.4]}
18... cxd5 {[%clk 0:02:52.3]} 19. cxd5 {[%clk 0:02:44.2]} 19... Rc8 {[%clk
0:02:50.9]} 20. Qa4 {[%clk 0:02:40.9]} 20... Rxc3 {[%clk 0:02:41]} 21. Rxc3
{[%clk 0:02:37.5]} 21... Nxe4 {[%clk 0:02:41.7]} 22. Rd3 {[%clk 0:02:37.1]}
22... Nc7 {[%clk 0:02:39.2]} 23. Qd7 {[%clk 0:02:25]} 23... Nxd5 {[%clk
0:02:38.8]} 24. Ng5 {[%clk 0:02:14.3]} 24... Re7 {[%clk 0:02:22.2]} 25. Qa4
{[%clk 0:01:59]} 25... Nxg5 {[%clk 0:02:00.6]} 26. Bxg5 {[%clk 0:01:57.9]} 26...
Rc7 {[%clk 0:02:00.8]} 27. Red1 {[%clk 0:01:51.7]} 27... Nc3 {[%clk 0:01:57.6]}
28. Rxc3 {[%clk 0:01:47.2]} 28... Rxc3 {[%clk 0:01:53.8]} 29. Bxb7 {[%clk
0:01:46.7]} 29... Qxb7 {[%clk 0:01:53.3]} 30. Qe8+ {[%clk 0:01:44.1]} 30... Bf8
{[%clk 0:01:51.3]} 31. Rxd6 {[%clk 0:01:28.1]} 31... Rc8 {[%clk 0:01:49.5]} 32.
Rd8 {[%clk 0:01:28.1]} 32... Rxd8 {[%clk 0:01:44]} 33. Bxd8 {[%clk 0:01:27.5]}
33... Qc8 {[%clk 0:01:34.8]} 34. Kh2 {[%clk 0:01:26.3]} 34... a6 {[%clk
0:01:17.6]} 35. g4 {[%clk 0:01:24.9]} 35... b5 {[%clk 0:01:17.1]} 36. Kg3 {[%clk
0:01:18.8]} 36... e4 {[%clk 0:01:13.2]} 37. Kg2 {[%clk 0:01:13]} 37... h6 {[%clk
0:01:07]} 38. Kg3 {[%clk 0:01:10.4]} 38... Qc3+ {[%clk 0:00:59.2]} 39. Kf4
{[%clk 0:00:55.3]} 39... g5+ {[%clk 0:00:43.7]} 40. Kf5 {[%clk 0:00:50.9]} 40...
Qf3+ {[%clk 0:00:43.4]} 41. Ke5 {[%clk 0:00:49.5]} 41... Qf4+ {[%clk 0:00:43.7]}
42. Kd5 {[%clk 0:00:45.9]} 42... Qd2+ {[%clk 0:00:26.9]} 43. Kc6 {[%clk
0:00:44.8]} 43... Qd6+ {[%clk 0:00:26]} 44. Kb7 {[%clk 0:00:43.1]} 44... Kg7
{[%clk 0:00:08.4]} 45. Bc7 {[%clk 0:00:37.7]} 45... Qd5+ {[%clk 0:00:08.1]} 46.
Kxa6 {[%clk 0:00:35.9]} 46... Qc4 {[%clk 0:00:04]} 47. Be5+ {[%clk 0:00:31.7]}
47... f6 {[%clk 0:00:03.9]} 48. Bxf6+ {[%clk 0:00:28]} 48... Kxf6 {[%clk
0:00:03.5]} 49. Qxf8+ {[%clk 0:00:28.4]} 49... Ke5 {[%clk 0:00:03.9]} 50. Qf5+
{[%clk 0:00:25.6]} 50... Kd4 {[%clk 0:00:03]} 51. Qd7+ {[%clk 0:00:23.3]} 51...
Kc3 {[%clk 0:00:02]} 52. Qxb5 {[%clk 0:00:22.1]} 52... Qc8+ {[%clk 0:00:02.1]}
53. Qb7 {[%clk 0:00:21.4]} 53... Qe6+ {[%clk 0:00:02.5]} 54. Qb6 {[%clk
0:00:21.4]} 54... Qc4+ {[%clk 0:00:02.4]} 55. b5 {[%clk 0:00:21.5]} 55... Qc8+
{[%clk 0:00:03.3]} 56. Qb7 {[%clk 0:00:21.3]} 56... Qc4 {[%clk 0:00:03.6]} 57.
Qc6 {[%clk 0:00:20.4]} 57... Kb3 {[%clk 0:00:03.9]} 58. Qxc4+ {[%clk 0:00:19.8]}
58... Kxc4 {[%clk 0:00:04.8]} 59. b6 {[%clk 0:00:20.1]} 59... Kd3 {[%clk
0:00:04.7]} 60. b7 {[%clk 0:00:20.2]} 60... Ke2 {[%clk 0:00:05.6]} 61. b8=Q
{[%clk 0:00:19.9]} 61... Kxf2 {[%clk 0:00:06.5]} 62. Qe5 {[%clk 0:00:18.3]}
62... e3 {[%clk 0:00:07.4]} 63. Qf5+ {[%clk 0:00:18]} 63... Ke1 {[%clk
0:00:07.1]} 64. Kb7 {[%clk 0:00:16.9]} 64... e2 {[%clk 0:00:08]} 65. a4 {[%clk
0:00:16.6]} 65... Kd2 {[%clk 0:00:08.9]} 66. Qd5+ {[%clk 0:00:16.7]} 66... Kc1
{[%clk 0:00:08.7]} 67. Qe4 {[%clk 0:00:16.8]} 67... Kd1 {[%clk 0:00:09.6]} 68.
Qd4+ {[%clk 0:00:17]} 68... Kc1 {[%clk 0:00:09.6]} 69. Qe3+ {[%clk 0:00:16.8]}
69... Kd1 {[%clk 0:00:10.5]} 70. Qd3+ {[%clk 0:00:17.1]} 70... Kc1 {[%clk
0:00:11.1]} 71. Qxe2 {[%clk 0:00:16.7]} 71... h5 {[%clk 0:00:11.1]} 72. gxh5
{[%clk 0:00:15.4]} 72... Kb1 {[%clk 0:00:11.1]} 73. h6 {[%clk 0:00:15.2]} 73...
Ka1 {[%clk 0:00:11]} 74. h7 {[%clk 0:00:15.4]} 74... Kb1 {[%clk 0:00:11.9]} 75.
h8=Q {[%clk 0:00:15]} 75... Kc1 {[%clk 0:00:12.8]} 76. Qc3+ {[%clk 0:00:14.6]}
76... Kb1 {[%clk 0:00:12.9]} 77. Qcb2# {[%clk 0:00:14.7]} 1-0

[Event "*** SCC Grand Prix: Titled Tuesday Blitz"]
[Site "Chess.com"]
[Date "2020.10.13"]
[Round "10"]
[White "GOGIEFF"]
[Black "youngKID"]
[Result "1/2-1/2"]
[WhiteElo "2878"]
[BlackElo "2829"]
[TimeControl "180+1"]
[EndTime "11:56:26 PDT"]
[Termination "Game drawn by agreement"]

1. d4 {[%clk 0:03:00.9]} 1... Nf6 {[%clk 0:03:00.5]} 2. c4 {[%clk 0:03:00.6]}
2... g6 {[%clk 0:03:01.1]} 3. Nc3 {[%clk 0:03:00.4]} 3... Bg7 {[%clk 0:03:01.4]}
4. e4 {[%clk 0:03:00.1]} 4... d6 {[%clk 0:03:01.9]} 5. Be2 {[%clk 0:03:00.5]}
5... a6 {[%clk 0:03:00.2]} 6. Be3 {[%clk 0:02:55.2]} 6... c6 {[%clk 0:02:58.6]}
7. c5 {[%clk 0:02:51.6]} 7... O-O {[%clk 0:02:56.8]} 8. h3 {[%clk 0:02:43.5]}
8... Nbd7 {[%clk 0:02:47.7]} 9. a3 {[%clk 0:02:21.2]} 9... b5 {[%clk 0:02:19.2]}
10. Nf3 {[%clk 0:02:19.4]} 10... a5 {[%clk 0:02:12.7]} 11. O-O {[%clk
0:02:13.2]} 11... Qc7 {[%clk 0:01:58.5]} 12. Qc2 {[%clk 0:02:01.7]} 12... dxc5
{[%clk 0:01:52.1]} 13. dxc5 {[%clk 0:02:02.6]} 13... Nh5 {[%clk 0:01:51.6]} 14.
Rfd1 {[%clk 0:01:55.1]} 14... Nf4 {[%clk 0:01:43.3]} 15. Bf1 {[%clk 0:01:52.1]}
15... Ne6 {[%clk 0:01:26.7]} 16. b4 {[%clk 0:01:51.4]} 16... axb4 {[%clk
0:01:25.9]} 17. axb4 {[%clk 0:01:52.2]} 17... Rxa1 {[%clk 0:01:26.3]} 18. Rxa1
{[%clk 0:01:53]} 18... Ndxc5 {[%clk 0:01:24.8]} 19. bxc5 {[%clk 0:01:34.8]}
19... b4 {[%clk 0:01:24.8]} 20. e5 {[%clk 0:01:22.9]} 20... Bxe5 {[%clk
0:01:11.5]} 21. Nb5 {[%clk 0:01:11.7]} 21... cxb5 {[%clk 0:01:09.5]} 22. Nxe5
{[%clk 0:01:08.9]} 22... Qxe5 {[%clk 0:01:10.4]} 23. Rc1 {[%clk 0:01:08.6]}
23... Nd4 {[%clk 0:01:01.9]} 24. Qb1 {[%clk 0:00:48.5]} 24... b3 {[%clk
0:00:33.9]} 25. Bxd4 {[%clk 0:00:48.6]} 25... Qxd4 {[%clk 0:00:34.3]} 26. Qxb3
{[%clk 0:00:49.3]} 26... b4 {[%clk 0:00:27.7]} 27. Rc4 {[%clk 0:00:48.8]} 27...
Qa1 {[%clk 0:00:20.5]} 28. Rxb4 {[%clk 0:00:48.8]} 28... Be6 {[%clk 0:00:17.7]}
29. Qc2 {[%clk 0:00:37.2]} 29... Rc8 {[%clk 0:00:16.1]} 30. c6 {[%clk
0:00:31.5]} 30... Qa8 {[%clk 0:00:06.3]} 31. Bb5 {[%clk 0:00:25.2]} 31... Bd5
{[%clk 0:00:06.6]} 32. Ra4 {[%clk 0:00:25.6]} 32... Qb8 {[%clk 0:00:06.4]} 33.
Qc5 {[%clk 0:00:24.1]} 33... Qe5 {[%clk 0:00:02.9]} 34. Bc4 {[%clk 0:00:11.5]}
34... Qe1+ {[%clk 0:00:02]} 35. Kh2 {[%clk 0:00:11.8]} 35... Bxc6 {[%clk
0:00:02.2]} 36. Ra7 {[%clk 0:00:10.5]} 36... Bd7 {[%clk 0:00:02.1]} 37. Qd4
{[%clk 0:00:07.2]} 37... Be6 {[%clk 0:00:02.5]} 38. Rxe7 {[%clk 0:00:06.6]}
38... Rxc4 {[%clk 0:00:02.1]} 39. Qxc4 {[%clk 0:00:07]} 39... Qxf2 {[%clk
0:00:02.7]} 40. Re8+ {[%clk 0:00:04.7]} 40... Kg7 {[%clk 0:00:02.6]} 41. Qc3+
{[%clk 0:00:05]} 41... Kh6 {[%clk 0:00:02.4]} 42. Qe5 {[%clk 0:00:05.7]} 42...
Qf5 {[%clk 0:00:01.9]} 43. Qxf5 {[%clk 0:00:04.6]} 43... Bxf5 {[%clk 0:00:02]}
44. g4 {[%clk 0:00:05.2]} 44... Be6 {[%clk 0:00:02.9]} 45. Rg8 {[%clk
0:00:05.4]} 45... f5 {[%clk 0:00:02.1]} 46. Re8 {[%clk 0:00:05]} 46... Bd5
{[%clk 0:00:02.4]} 47. gxf5 {[%clk 0:00:04.1]} 47... gxf5 {[%clk 0:00:03.3]} 48.
Kg3 {[%clk 0:00:04.7]} 48... Kg5 {[%clk 0:00:03.7]} 49. h4+ {[%clk 0:00:02.9]}
49... Kg6 {[%clk 0:00:04.2]} 50. Rd8 {[%clk 0:00:03.8]} 50... Be4 {[%clk
0:00:04.5]} 51. Kf4 {[%clk 0:00:04.7]} 51... Kh5 {[%clk 0:00:04.9]} 52. Rd6
{[%clk 0:00:04.8]} 52... Bc2 {[%clk 0:00:03.4]} 53. Rd7 {[%clk 0:00:05]} 53...
h6 {[%clk 0:00:02.3]} 54. Rd6 {[%clk 0:00:05.4]} 54... Be4 {[%clk 0:00:02.6]}
55. Kg3 {[%clk 0:00:05.7]} 55... Bc2 {[%clk 0:00:02.2]} 56. Rf6 {[%clk
0:00:06.3]} 56... Be4 {[%clk 0:00:02.9]} 57. Kf4 {[%clk 0:00:06.7]} 57... Bc2
{[%clk 0:00:03.4]} 58. Rc6 {[%clk 0:00:06.7]} 58... Be4 {[%clk 0:00:04.3]} 59.
Rc1 {[%clk 0:00:06.6]} 59... Bd3 {[%clk 0:00:03.5]} 60. Rd1 {[%clk 0:00:06.3]}
60... Be4 {[%clk 0:00:03.8]} 61. Rd2 {[%clk 0:00:06.6]} 61... Bb1 {[%clk
0:00:03.8]} 62. Rh2 {[%clk 0:00:06.7]} 62... Be4 {[%clk 0:00:04.3]} 63. Rh3
{[%clk 0:00:07.2]} 63... Bc2 {[%clk 0:00:04.4]} 64. Rg3 {[%clk 0:00:08.1]} 64...
Be4 {[%clk 0:00:05.3]} 65. Rg7 {[%clk 0:00:08.7]} 65... Kxh4 {[%clk 0:00:05]}
66. Rh7 {[%clk 0:00:07.9]} 66... h5 {[%clk 0:00:04.7]} 67. Ra7 {[%clk
0:00:07.7]} 67... Kh3 {[%clk 0:00:04.6]} 68. Ra3+ {[%clk 0:00:07.7]} 68... Kg2
{[%clk 0:00:05]} 69. Kg5 {[%clk 0:00:08.1]} 1/2-1/2

[Event "*** SCC Grand Prix: Titled Tuesday Blitz"]
[Site "Chess.com"]
[Date "2020.10.13"]
[Round "10"]
[White "Sesleria"]
[Black "Trickov"]
[Result "0-1"]
[WhiteElo "2026"]
[BlackElo "2362"]
[TimeControl "180+1"]
[EndTime "11:56:27 PDT"]
[Termination "Trickov won by resignation"]

1. d4 {[%clk 0:02:58]} 1... d5 {[%clk 0:02:57.1]} 2. c4 {[%clk 0:02:54.6]} 2...
c6 {[%clk 0:02:56.7]} 3. Nc3 {[%clk 0:02:54.4]} 3... Nf6 {[%clk 0:02:56.6]} 4.
Nf3 {[%clk 0:02:54.5]} 4... dxc4 {[%clk 0:02:56.6]} 5. a4 {[%clk 0:02:53]} 5...
Bf5 {[%clk 0:02:57.1]} 6. e3 {[%clk 0:02:49.1]} 6... e6 {[%clk 0:02:57.6]} 7.
Bxc4 {[%clk 0:02:49]} 7... Bb4 {[%clk 0:02:58.1]} 8. O-O {[%clk 0:02:48.8]} 8...
O-O {[%clk 0:02:58.6]} 9. Qe2 {[%clk 0:02:47.8]} 9... Bg6 {[%clk 0:02:57.9]} 10.
Rd1 {[%clk 0:02:47]} 10... Qe7 {[%clk 0:02:57.4]} 11. a5 {[%clk 0:02:42.2]}
11... a6 {[%clk 0:02:56.8]} 12. Ne5 {[%clk 0:02:31.7]} 12... Qc7 {[%clk
0:02:55.6]} 13. Nxg6 {[%clk 0:02:00.2]} 13... hxg6 {[%clk 0:02:55]} 14. e4
{[%clk 0:01:59.1]} 14... Bxa5 {[%clk 0:02:53.2]} 15. e5 {[%clk 0:01:56.5]} 15...
Nd5 {[%clk 0:02:43.5]} 16. Ne4 {[%clk 0:01:52.1]} 16... Bb4 {[%clk 0:02:41.8]}
17. Qg4 {[%clk 0:01:31.8]} 17... Nd7 {[%clk 0:01:54.3]} 18. h4 {[%clk
0:01:21.7]} 18... c5 {[%clk 0:01:16.5]} 19. h5 {[%clk 0:00:59.2]} 19... cxd4
{[%clk 0:01:15.1]} 20. Bxd5 {[%clk 0:00:59]} 20... exd5 {[%clk 0:01:14.4]} 21.
Ng5 {[%clk 0:00:52.5]} 21... Nxe5 {[%clk 0:01:09.2]} 22. Qxd4 {[%clk 0:00:38.5]}
22... gxh5 {[%clk 0:01:00.3]} 23. Qxb4 {[%clk 0:00:36.3]} 23... Rad8 {[%clk
0:00:54]} 24. Bf4 {[%clk 0:00:34.4]} 24... Rfe8 {[%clk 0:00:46.7]} 25. Rac1
{[%clk 0:00:33.6]} 25... Qd7 {[%clk 0:00:41.3]} 26. Bxe5 {[%clk 0:00:25.5]}
26... Rxe5 {[%clk 0:00:40.6]} 27. Nf3 {[%clk 0:00:26.1]} 27... Re4 {[%clk
0:00:37]} 28. Qxe4 {[%clk 0:00:24.8]} 28... dxe4 {[%clk 0:00:36.6]} 29. Rxd7
{[%clk 0:00:25]} 29... Rxd7 {[%clk 0:00:36.7]} 30. Ng5 {[%clk 0:00:25.2]} 30...
g6 {[%clk 0:00:28]} 31. Nxe4 {[%clk 0:00:24.2]} 31... Kg7 {[%clk 0:00:27.4]} 32.
Kf1 {[%clk 0:00:23.3]} 32... Rd4 {[%clk 0:00:27.3]} 33. f3 {[%clk 0:00:23.2]}
33... Rb4 {[%clk 0:00:27.7]} 34. Rc2 {[%clk 0:00:23]} 34... a5 {[%clk 0:00:28]}
35. Ke2 {[%clk 0:00:21.9]} 35... a4 {[%clk 0:00:27.5]} 36. Nc5 {[%clk
0:00:21.6]} 36... b6 {[%clk 0:00:25.7]} 37. Nd3 {[%clk 0:00:20.8]} 37... Rb3
{[%clk 0:00:25.4]} 38. Rc7 {[%clk 0:00:19.6]} 38... Kf6 {[%clk 0:00:19.6]} 39.
Kd2 {[%clk 0:00:19.9]} 39... a3 {[%clk 0:00:16.1]} 40. bxa3 {[%clk 0:00:19.7]}
40... Rxa3 {[%clk 0:00:15.8]} 41. Rc6+ {[%clk 0:00:20.2]} 41... Kg7 {[%clk
0:00:14.7]} 42. Rxb6 {[%clk 0:00:20.6]} 42... Ra2+ {[%clk 0:00:15]} 43. Rb2
{[%clk 0:00:20.8]} 43... Ra3 {[%clk 0:00:12.4]} 44. Ke2 {[%clk 0:00:19.8]} 44...
h4 {[%clk 0:00:12.4]} 45. Rc2 {[%clk 0:00:18.7]} 45... f6 {[%clk 0:00:12]} 46.
Rc6 {[%clk 0:00:18.4]} 46... Ra2+ {[%clk 0:00:11.2]} 47. Kf1 {[%clk 0:00:18.5]}
47... g5 {[%clk 0:00:10.7]} 48. Nf2 {[%clk 0:00:18]} 48... f5 {[%clk 0:00:08.8]}
49. Rb6 {[%clk 0:00:15.8]} 49... Ra1+ {[%clk 0:00:08.4]} 50. Ke2 {[%clk
0:00:15.9]} 50... Ra2+ {[%clk 0:00:08.9]} 51. Ke1 {[%clk 0:00:16.2]} 51... Ra1+
{[%clk 0:00:09.2]} 52. Nd1 {[%clk 0:00:16.6]} 52... Ra2 {[%clk 0:00:09.5]} 53.
Ne3 {[%clk 0:00:15.7]} 53... f4 {[%clk 0:00:08]} 54. Nf5+ {[%clk 0:00:14.9]}
54... Kh7 {[%clk 0:00:08.6]} 55. Kf1 {[%clk 0:00:11.4]} 55... Ra1+ {[%clk
0:00:08.8]} 56. Kf2 {[%clk 0:00:10.9]} 56... Ra2+ {[%clk 0:00:09.2]} 57. Kg1
{[%clk 0:00:11.4]} 57... Ra1+ {[%clk 0:00:09.5]} 58. Kh2 {[%clk 0:00:12]} 58...
Ra5 {[%clk 0:00:08.2]} 59. Kh3 {[%clk 0:00:12.1]} 59... Rxf5 {[%clk 0:00:07.9]}
60. Kg4 {[%clk 0:00:13]} 60... Ra5 {[%clk 0:00:07.7]} 61. Kh5 {[%clk 0:00:12.7]}
61... Kg7 {[%clk 0:00:07.5]} 62. Rb7+ {[%clk 0:00:12.4]} 62... Kf6 {[%clk
0:00:07.3]} 63. Rb6+ {[%clk 0:00:12.4]} 63... Kf5 {[%clk 0:00:07.3]} 64. Rb4
{[%clk 0:00:09.9]} 64... Re5 {[%clk 0:00:05.2]} 65. Rb6 {[%clk 0:00:10]} 65...
Re2 {[%clk 0:00:03.9]} 66. Rb5+ {[%clk 0:00:10]} 66... Kf6 {[%clk 0:00:03.9]}
67. Rxg5 {[%clk 0:00:10.9]} 67... h3 {[%clk 0:00:04.1]} 68. gxh3 {[%clk
0:00:10.7]} 68... Rf2 {[%clk 0:00:04.4]} 69. Kg4 {[%clk 0:00:09.2]} 69... Rg2+
{[%clk 0:00:04.7]} 70. Kxf4 {[%clk 0:00:09.4]} 70... Rxg5 {[%clk 0:00:04.8]} 71.
h4 {[%clk 0:00:10.3]} 71... Rf5+ {[%clk 0:00:05]} 72. Kg4 {[%clk 0:00:11.2]}
72... Ra5 {[%clk 0:00:05.3]} 73. f4 {[%clk 0:00:12.1]} 73... Ra4 {[%clk
0:00:04.9]} 74. h5 {[%clk 0:00:13]} 74... Ra5 {[%clk 0:00:05.3]} 75. h6 {[%clk
0:00:13.1]} 75... Kg6 {[%clk 0:00:05.6]} 76. f5+ {[%clk 0:00:13.1]} 76... Kxh6
{[%clk 0:00:06]} 77. Kf4 {[%clk 0:00:12.7]} 77... Kg7 {[%clk 0:00:06.5]} 78. Ke4
{[%clk 0:00:12.9]} 78... Kf6 {[%clk 0:00:06.7]} 0-1

[Event "*** SCC Grand Prix: Titled Tuesday Blitz"]
[Site "Chess.com"]
[Date "2020.10.13"]
[Round "10"]
[White "BeanScreen"]
[Black "Castleqweenside7447"]
[Result "1/2-1/2"]
[WhiteElo "2688"]
[BlackElo "2442"]
[TimeControl "180+1"]
[EndTime "11:56:28 PDT"]
[Termination "Game drawn - insufficient material"]

1. e4 {[%clk 0:02:59.9]} 1... c6 {[%clk 0:02:59]} 2. d4 {[%clk 0:02:59.2]} 2...
d5 {[%clk 0:02:59.9]} 3. exd5 {[%clk 0:03:00.1]} 3... cxd5 {[%clk 0:03:00.1]} 4.
Bd3 {[%clk 0:03:00.7]} 4... Nc6 {[%clk 0:03:00.5]} 5. c3 {[%clk 0:03:01.3]} 5...
Nf6 {[%clk 0:03:01.1]} 6. Bf4 {[%clk 0:03:01.2]} 6... g6 {[%clk 0:03:00.5]} 7.
Nd2 {[%clk 0:03:01.3]} 7... Bf5 {[%clk 0:03:00.2]} 8. Bxf5 {[%clk 0:03:01.6]}
8... gxf5 {[%clk 0:03:01.1]} 9. Ngf3 {[%clk 0:03:02.1]} 9... e6 {[%clk
0:03:01.4]} 10. O-O {[%clk 0:03:02.4]} 10... Nh5 {[%clk 0:03:00.1]} 11. Bg5
{[%clk 0:03:00.8]} 11... Qc7 {[%clk 0:02:58.7]} 12. Re1 {[%clk 0:03:00]} 12...
Nf4 {[%clk 0:02:56.3]} 13. Ne5 {[%clk 0:02:56.8]} 13... Ng6 {[%clk 0:02:54.7]}
14. Bf6 {[%clk 0:02:49.3]} 14... Rg8 {[%clk 0:02:54.2]} 15. Ndf3 {[%clk
0:02:37.8]} 15... Bd6 {[%clk 0:02:51.1]} 16. g3 {[%clk 0:02:30.9]} 16... Ngxe5
{[%clk 0:02:42.3]} 17. Nxe5 {[%clk 0:02:27.7]} 17... Nxe5 {[%clk 0:02:41.8]} 18.
dxe5 {[%clk 0:02:27.1]} 18... Be7 {[%clk 0:02:42]} 19. Qa4+ {[%clk 0:02:25]}
19... Qc6 {[%clk 0:02:39.9]} 20. Qh4 {[%clk 0:02:23.7]} 20... Bxf6 {[%clk
0:02:35.5]} 21. exf6 {[%clk 0:02:16.6]} 21... O-O-O {[%clk 0:02:29.6]} 22. Qxh7
{[%clk 0:02:15.8]} 22... Rdf8 {[%clk 0:02:21.7]} 23. Qh4 {[%clk 0:02:12.6]}
23... Rg4 {[%clk 0:02:19.4]} 24. Qh6 {[%clk 0:02:04.8]} 24... Rfg8 {[%clk
0:02:07.1]} 25. Qe3 {[%clk 0:02:04.2]} 25... Qb6 {[%clk 0:01:52.9]} 26. Qxb6
{[%clk 0:02:03.6]} 26... axb6 {[%clk 0:01:53.8]} 27. a4 {[%clk 0:01:34.3]} 27...
R8g6 {[%clk 0:01:44.6]} 28. a5 {[%clk 0:01:33.8]} 28... Kc7 {[%clk 0:01:43.3]}
29. axb6+ {[%clk 0:01:31.4]} 29... Kxb6 {[%clk 0:01:44.2]} 30. Ra8 {[%clk
0:01:31.3]} 30... Rxf6 {[%clk 0:01:43.4]} 31. Rf8 {[%clk 0:01:30.2]} 31... d4
{[%clk 0:01:39.4]} 32. Rd1 {[%clk 0:01:18.2]} 32... e5 {[%clk 0:01:35.8]} 33.
cxd4 {[%clk 0:01:16.4]} 33... Rxd4 {[%clk 0:01:35.3]} 34. Rxd4 {[%clk
0:01:15.8]} 34... exd4 {[%clk 0:01:35.8]} 35. Kf1 {[%clk 0:01:12.5]} 35... d3
{[%clk 0:01:33]} 36. Ke1 {[%clk 0:01:12.1]} 36... Re6+ {[%clk 0:01:33.2]} 37.
Kd2 {[%clk 0:01:11.4]} 37... Re2+ {[%clk 0:01:32.9]} 38. Kxd3 {[%clk 0:01:11.8]}
38... Rxf2 {[%clk 0:01:28.8]} 39. Rxf7 {[%clk 0:01:11.7]} 39... Rxh2 {[%clk
0:01:28.6]} 40. Rf6+ {[%clk 0:00:59.6]} 40... Kc7 {[%clk 0:01:26.5]} 41. Rxf5
{[%clk 0:00:47.2]} 41... Rxb2 {[%clk 0:01:25.4]} 42. g4 {[%clk 0:00:47.6]} 42...
Rg2 {[%clk 0:01:21.9]} 43. g5 {[%clk 0:00:48]} 43... Kd6 {[%clk 0:01:22.3]} 44.
Ke4 {[%clk 0:00:47]} 44... Ke6 {[%clk 0:01:22.3]} 45. Rf6+ {[%clk 0:00:46.8]}
45... Ke7 {[%clk 0:01:22.5]} 46. Rf5 {[%clk 0:00:42.9]} 46... Ke6 {[%clk
0:01:14]} 47. Rb5 {[%clk 0:00:42.6]} 47... Kf7 {[%clk 0:01:09.1]} 48. Kf4 {[%clk
0:00:31.1]} 48... Rf2+ {[%clk 0:01:02.6]} 49. Kg3 {[%clk 0:00:31.2]} 49... Rf1
{[%clk 0:01:01.8]} 50. Kg4 {[%clk 0:00:28.7]} 50... Rg1+ {[%clk 0:00:58.8]} 51.
Kh5 {[%clk 0:00:27.6]} 51... Rh1+ {[%clk 0:00:58]} 52. Kg4 {[%clk 0:00:28.1]}
52... Rg1+ {[%clk 0:00:58.7]} 53. Kf3 {[%clk 0:00:28.1]} 53... Kg6 {[%clk
0:00:57.4]} 54. Kf4 {[%clk 0:00:25.2]} 54... Rf1+ {[%clk 0:00:57.2]} 55. Kg3
{[%clk 0:00:22.5]} 55... Rg1+ {[%clk 0:00:56.1]} 56. Kf2 {[%clk 0:00:22.8]}
56... Rxg5 {[%clk 0:00:55.6]} 57. Rxb7 {[%clk 0:00:23.3]} 57... Rf5+ {[%clk
0:00:55.8]} 58. Kg3 {[%clk 0:00:23.6]} 58... Rf6 {[%clk 0:00:56.2]} 59. Rb5
{[%clk 0:00:23.1]} 59... Rc6 {[%clk 0:00:55.6]} 60. Kf4 {[%clk 0:00:23]} 60...
Rc4+ {[%clk 0:00:55.3]} 61. Ke5 {[%clk 0:00:23.3]} 61... Rg4 {[%clk 0:00:53.5]}
62. Ke6 {[%clk 0:00:23.5]} 62... Rg5 {[%clk 0:00:53.2]} 63. Rb8 {[%clk
0:00:23.5]} 63... Kh5 {[%clk 0:00:52.4]} 64. Kf6 {[%clk 0:00:22.8]} 64... Kg4
{[%clk 0:00:53.3]} 65. Rb4+ {[%clk 0:00:22.1]} 65... Kh5 {[%clk 0:00:53.2]} 66.
Rb1 {[%clk 0:00:14.9]} 66... Rg6+ {[%clk 0:00:52.1]} 67. Kf7 {[%clk 0:00:14.4]}
67... Rg4 {[%clk 0:00:51.7]} 68. Kf6 {[%clk 0:00:12.7]} 68... Rg6+ {[%clk
0:00:51.1]} 69. Kf7 {[%clk 0:00:13.1]} 69... Rg4 {[%clk 0:00:50.8]} 70. Rb8
{[%clk 0:00:13.1]} 70... Kh4 {[%clk 0:00:49.8]} 71. Kf6 {[%clk 0:00:12.4]} 71...
Kg3 {[%clk 0:00:50.7]} 72. Kf5 {[%clk 0:00:12.6]} 72... Rf4+ {[%clk 0:00:49.8]}
73. Ke5 {[%clk 0:00:13.1]} 73... Rf3 {[%clk 0:00:48.9]} 74. Rb4 {[%clk
0:00:12.4]} 74... Re3+ {[%clk 0:00:47.8]} 75. Kf5 {[%clk 0:00:12.8]} 75... Rf3+
{[%clk 0:00:47.7]} 76. Kg5 {[%clk 0:00:13.3]} 76... Rc3 {[%clk 0:00:45.8]} 77.
Rg4+ {[%clk 0:00:12.4]} 77... Kf3 {[%clk 0:00:45]} 78. Rf4+ {[%clk 0:00:12.8]}
78... Ke3 {[%clk 0:00:45.3]} 79. Kg4 {[%clk 0:00:12.2]} 79... Kd3 {[%clk
0:00:44.3]} 80. Rf3+ {[%clk 0:00:12.5]} 80... Kd4 {[%clk 0:00:44.4]} 81. Rxc3
{[%clk 0:00:13.3]} 81... Kxc3 {[%clk 0:00:44.5]} 1/2-1/2